[Event "Fagernes GM Swiss 2020"]
[Site "Fagernes"]
[Date "2020.10.11"]
[Round "9.15"]
[White "Vestby-Ellingsen, Mads"]
[Black "Machlik, Monika"]
[Result "1/2-1/2"]
[ECO "B19"]
[WhiteElo "2362"]
[BlackElo "2082"]
[Annotator "RC"]
[PlyCount "182"]
[EventDate "2020.10.04"]
[EventType "swiss"]
[EventCountry "NOR"]
[SourceTitle "playchess.com"]
[Source "ChessBase"]
[SourceQuality "1"]
[TimeControl "40/6000+30:2400+30"]

1. e4 {[%emt 0:00:14]} c6 {[%emt 0:00:00]} 2. d4 {[%emt 0:00:37]} d5 {[%emt 0:00:00]} 3. Nd2 {[%emt 0:00:13]} dxe4 {[%emt 0:00:00]} 4. Nxe4 {[%emt 0:00:11]} Bf5 {[%emt 0:00:00]} 5. Ng3 {[%emt 0:00:14]} Bg6 {[%emt 0:00:00]} 6. h4 {[%emt 0:00:09]} h6 {[%emt 0:00:02]} 7. Nf3 {[%emt 0:00:09]} Nd7 {[%emt 0:00:04]} 8. h5 {[%emt 0:00:09]} Bh7 {[%emt 0:00:02]} 9. Bd3 {[%emt 0:00:09]} Bxd3 {[%emt 0:00:03]} 10. Qxd3 {[%emt 0:00:10]} e6 {[%emt 0:00:07]} 11. Bd2 {[%emt 0:00:09]} Ngf6 {[%emt 0:00:29]} 12. O-O-O {[%emt 0:00:15]} Qc7 {[%emt 0:13:11]} 13. Ne4 {[%emt 0:00:34]} O-O-O {[%emt 0:00:06]} 14. g3 {[%emt 0:00:11]} Nc5 {[%emt 0:01:29]} 15. Nxc5 {[%emt 0:00:15]} Bxc5 {[%emt 0:00:02]} 16. c4 {[%emt 0:00:21]} Qe7 {[%emt 0:02:44]} 17. a3 {[%emt 0:00:20]} Ng4 {[%emt 0:06:23]} 18. Qe2 {[%emt 0:00:16]} Bd6 {[%emt 0:31:13]} 19. Nh4 {[%emt 0:00:43]} Nf6 {[%emt 0:00:27]} 20. Bc3 {[%emt 0:00:28]} Rhe8 {[%emt 0:05:38]} 21. Nf3 {[%emt 0:00:25]} Ng4 {[%emt 0:03:28]} 22. Kb1 {[%emt 0:02:28]} f5 {[%emt 0:02:09]} 23. Ne5 {[%emt 0:10:14]} Nxe5 {[%emt 0:03:07]} 24. dxe5 {[%emt 0:09:03]} Bc7 {[%emt 0:09:07]} 25. f4 {[%emt 0:03:07]} Rxd1+ {[%emt 0:03:38]} 26. Rxd1 {[%emt 0:01:11]} Rd8 {[%emt 0:01:03]} 27. Rxd8+ {[%emt 0:06:31]} Qxd8 {[%emt 0:02:37]} 28. Ka2 {[%emt 0:03:34]} Bb6 {[%emt 0:02:00]} 29. g4 {[%emt 0:08:15]} Qf8 {[%emt 0:02:11]} 30. g5 {[%emt 0:34:40]} Qf7 {[%emt 0:06:03]} 31. gxh6 {[%emt 0:13:53]} gxh6 {[%emt 0:00:06]} 32. Qg2 {[%emt 0:00:07]} Kd7 {[%emt 0:02:11]} 33. Bb4 {[%emt 0:00:25]} Bc7 {[%emt 0:01:57]} 34. Bd6 {[%emt 0:03:28]} Bd8 {[%emt 0:00:43]} 35. Qg1 {[%emt 0:05:05]} a6 {[%emt 0:07:43]} 36. Qa7 {[%emt 0:03:34]} Ke8 {[%emt 0:00:05]} 37. a4 {[%emt 0:06:43]} Qd7 {[%emt 0:01:06]} 38. Kb3 {[%emt 0:00:00]} Qg7 {[%emt 0:03:53]} 39. Ka2 {[%emt 0:00:00]} Qf7 {[%emt 0:01:39]} 40. Qg1 {[%emt 0:00:49]} Kd7 {[%emt 0:02:34]} 41. b3 {[%emt 0:05:05]} Ke8 {[%emt 0:08:33]} 42. Kb2 {[%emt 0:02:23]} Kd7 {[%emt 0:00:55]} 43. Qa7 {[%emt 0:02:37]} Ke8 {[%emt 0:00:08]} 44. Qb8 {[%emt 0:01:55]} Qd7 {[%emt 0:00:46]} 45. Qa8 {[%emt 0:05:23]} Kf7 {[%emt 0:00:18]} 46. Qa7 {[%emt 0:01:37]} Ke8 {[%emt 0:01:24]} 47. Qg1 {[%emt 0:00:40]} Qf7 {[%emt 0:02:02]} 48. Kc3 {[%emt 0:00:18]} Kd7 {[%emt 0:05:40]} 49. Qd1 {[%emt 0:11:18]} Ke8 {[%emt 0:02:13]} 50. Bc5 {[%emt 0:00:47]} Bc7 {[%emt 0:02:34]} 51. Qg1 {[%emt 0:00:38]} Bd8 {[%emt 0:05:36]} 52. Qd1 {[%emt 0:07:50]} Bc7 {[%emt 0:01:27]} 53. Kb2 {[%emt 0:00:07]} Qg7 {[%emt 0:01:30]} 54. Ka3 {[%emt 0:00:29]} Qf7 {[%emt 0:02:24]} 55. Qg1 {[%emt 0:00:29]} Bd8 {[%emt 0:01:00]} 56. Qg3 {[%emt 0:01:43]} Bc7 {[%emt 0:00:27]} 57. Qg2 {[%emt 0:00:11]} Bd8 {[%emt 0:00:38]} 58. Qg1 {[%emt 0:00:06]} Kd7 {[%emt 0:04:47]} 59. Qd4+ {[%emt 0:00:52]} Ke8 {[%emt 0:00:09]} 60. Kb4 {[%emt 0:00:46]} Qxh5 {[%emt 0:02:05]} 61. Bf8 {[%emt 0:03:12]} Qh1 {[%emt 0:03:10]} 62. Bc5 {[%emt 0:01:18]} Qe1+ {[%emt 0:00:55]} 63. Ka3 {[%emt 0:00:06]} Qc1+ {[%emt 0:01:00]} 64. Ka2 {[%emt 0:00:07]} Qc2+ {[%emt 0:00:48]} 65. Ka3 {[%emt 0:00:54]} Qc1+ {[%emt 0:00:36]} 66. Ka2 {[%emt 0:00:04]} Ba5 {[%emt 0:01:53]} 67. b4 {[%emt 0:00:58]} Qc2+ {[%emt 0:00:11]} 68. Ka3 {[%emt 0:00:05]} Qc1+ {[%emt 0:00:09]} 69. Ka2 {[%emt 0:00:11]} Qc2+ {[%emt 0:00:42]} 70. Ka3 {[%emt 0:00:14]} Bc7 {[%emt 0:00:57]} 71. Bb6 {[%emt 0:02:50]} Bxb6 {[%emt 0:00:34]} 72. Qxb6 {[%emt 0:00:04]} Qc3+ {[%emt 0:00:08]} 73. Ka2 {[%emt 0:00:03]} Qxc4+ {[%emt 0:00:15]} 74. Ka3 {[%emt 0:00:03]} Qc3+ {[%emt 0:00:39]} 75. Ka2 {[%emt 0:00:05]} Qd2+ {[%emt 0:00:10]} 76. Ka3 {[%emt 0:00:08]} Qd3+ {[%emt 0:00:14]} 77. Ka2 {[%emt 0:00:14]} Qd7 {[%emt 0:00:54]} 78. Qg1 {[%emt 0:00:28]} Qf7 {[%emt 0:00:49]} 79. Qa7 {[%emt 0:01:04]} Qd7 {[%emt 0:00:27]} 80. Qb8+ {[%emt 0:00:21]} Kf7 {[%emt 0:00:15]} 81. a5 {[%emt 0:01:50]} Kg7 {[%emt 0:00:53]} 82. Qa7 {[%emt 0:00:30]} Kh7 {[%emt 0:00:17]} 83. Qf2 {[%emt 0:00:47]} h5 {[%emt 0:00:28]} 84. Qh4 {[%emt 0:00:23]} Qd2+ {[%emt 0:01:06]} 85. Kb3 {[%emt 0:00:18]} Qd3+ {[%emt 0:00:20]} 86. Kb2 {[%emt 0:00:13]} Qd4+ {[%emt 0:00:33]} 87. Kb3 {[%emt 0:00:08]} Qd5+ {[%emt 0:00:29]} 88. Kc3 {[%emt 0:01:06]} Qf3+ {[%emt 0:00:07]} 89. Kd4 {[%emt 0:01:23]} Qd5+ {[%emt 0:00:27]} 90. Kc3 {[%emt 0:00:08]} Qf3+ {[%emt 0:00:49]} 91. Kd4 {[%emt 0:00:17]} Qd5+ {[%emt 0:01:19]} 1/2-1/2

[Event "Fagernes GM Swiss 2020"]
[Site "Fagernes"]
[Date "2020.10.11"]
[Round "9.16"]
[White "Kvaloy, Aksel Bu"]
[Black "Skotheim, Andreas"]
[Result "1/2-1/2"]
[ECO "C92"]
[WhiteElo "2174"]
[BlackElo "2120"]
[Annotator "NA"]
[PlyCount "96"]
[EventDate "2020.10.04"]
[EventType "swiss"]
[EventCountry "NOR"]
[SourceTitle "playchess.com"]
[Source "ChessBase"]
[SourceQuality "1"]
[TimeControl "40/6000+30:2400+30"]

{[%evp 8,95,23,25,19,17,15,37,23,29,24,34,34,41,32767,29,27,32767,33,36,32767,32767,32767,-17,-8,32767,32767,-48,-50,-38,-30,-58,32767,32767,32767,32767,629,-62,-48,-103,-83,-105,-79,-102,-58,-94,-106,-111,-97,-107,-98,-97,32767,-97,-118,-95,32767,32767,-143,32767,32767,32767,32767,-137,-127,-152,-39,-88,-92,-109,-118,-140,-66,32767,-125,-145,-56,32767,-42,-110,-81,32767,32767,32767,-107,-135,-115,-164,0,-3]} 1. e4 {[%emt 0:00:00]} e5 {[%emt 0:00:00]} 2. Nf3 {[%emt 0:00:00]} Nc6 {[%emt 0:00:17]} 3. Bb5 {[%emt 0:00:00]} a6 {[%emt 0:00:39]} 4. Ba4 {[%emt 0:00:00]} Nf6 {[%emt 0:00:32]} 5. O-O {[%emt 0:00:19]} Be7 {[%emt 0:00:16]} 6. Re1 {[%emt 0:00:10]} b5 {[%emt 0:00:44]} 7. Bb3 {[%emt 0:00:05]} d6 {[%emt 0:00:38]} 8. c3 {[%emt 0:00:13]} O-O {[%emt 0:00:31]} 9. h3 {[%emt 0:00:08]} Nb8 {[%emt 0:00:36]} 10. d4 {[%emt 0:00:19]} Nbd7 {[%emt 0:00:13]} 11. Nbd2 {[%emt 0:00:07]} Bb7 {[%emt 0:00:22]} 12. Bc2 {[%emt 0:00:15]} Re8 {[%emt 0:00:32]} 13. Nf1 {[%emt 0:00:27]} Bf8 {[%emt 0:00:22]} 14. Ng3 {[%emt 0:00:45]} g6 {[%emt 0:00:24]} 15. d5 {[%emt 0:05:30]} c6 {[%emt 0:03:18]} 16. dxc6 {[%emt 0:00:07]} Bxc6 {[%emt 0:00:06] [#]} 17. b4 $146 {[%emt 0:02:26] C92: Closed Ruy Lopez: 9...Be6, Karpov and Flohr-Zaitsev Variations.} ({Predecessor:} 17. a4 Nc5 18. axb5 axb5 19. Bg5 h6 20. Rxa8 Bxa8 21. Bd2 Bc6 22. b4 Ncd7 23. Qc1 Kh7 24. Bb3 d5 25. exd5 Bxd5 26. Bxd5 Nxd5 {½-½ (61) Sergeyeva,M (2332)-Pascua,H (2443) Bangkog 2018}) 17... Qc7 {[%emt 0:15:21]} 18. a4 {[%emt 0:07:38]} d5 {[%emt 0:09:54]} 19. axb5 {[%emt 0:01:19]} axb5 {[%emt 0:00:22]} 20. Ra4 {[%emt 1:30:12]} Ra6 21. Rxa6 {[%emt 0:00:00]} Bb7 {[%emt 1:15:23]} 22. Ra8 $2 ({White should play} 22. Ra7 $18) 22... Bxa8 {[%emt 0:00:00]} 23. Bb3 {[%emt 0:00:00]} Qxc3 {[%emt 0:00:00]} 24. Bd2 {[%emt 0:00:00]} Qc6 {[%emt 0:00:00]} 25. exd5 {[%emt 0:00:00]} Nxd5 {[%emt 0:00:00]} 26. Ne4 {[%emt 0:00:00]} h6 {[%emt 0:00:00]} ({But not} 26... Nxb4 27. Nfg5 $15) 27. Qb1 {[%emt 0:00:00]} N7b6 {[%emt 0:00:00]} 28. Nc5 {[%emt 0:00:00] [#]} Bg7 $1 {[%emt 0:00:00]} 29. Qa2 {[%emt 0:00:00]} Kh7 {[%emt 0:00:00]} 30. Rc1 {[%emt 0:00:00]} f5 {[%emt 0:00:00]} 31. Qa6 {[%emt 0:00:00]} Nc4 {[%emt 0:00:00]} 32. Qxc6 {[%emt 0:00:00]} Bxc6 {[%emt 0:00:00]} 33. Bxc4 {[%emt 0:00:00]} bxc4 {[%emt 0:00:00]} 34. Rxc4 {[%emt 0:00:00]} Bb5 {[%emt 0:00:00]} 35. Rc1 {[%emt 0:00:00]} e4 {[%emt 0:00:00]} 36. Nh2 {[%emt 0:00:00]} Nb6 {[%emt 0:02:40]} (36... Ra8 $17 37. Ne6 Bb2) 37. Bc3 {[%emt 0:00:00]} Bxc3 {[%emt 0:01:41]} 38. Rxc3 {[%emt 0:00:00]} Nd5 {[%emt 0:00:10]} 39. Rc1 {[%emt 0:00:00]} f4 {[%emt 0:02:14]} (39... Nxb4 $17 40. Nb3 Rd8) 40. Rd1 {[%emt 0:00:00] [#]} Nc3 $1 {[%emt 0:00:57]} ({But not} 40... Nxb4 $6 41. Ng4 $11) 41. Re1 {[%emt 0:37:29]} e3 {[%emt 0:41:02]} (41... g5 $17 42. Kh1 h5) 42. fxe3 {[%emt 0:02:35]} fxe3 {[%emt 0:00:57]} 43. Ng4 {[%emt 0:09:45]} ({White should play} 43. Nf3 $15) 43... Nd5 {[%emt 0:00:00]} 44. Nb3 {[%emt 0:00:00]} h5 {[%emt 0:00:00]} 45. Nd4 {[%emt 0:00:00]} Bc4 {[%emt 0:00:00]} 46. Nh2 {[%emt 0:00:00]} Nxb4 {[%emt 0:00:00]} 47. Nf1 {[%emt 0:00:00]} Re4 $2 {[%emt 0:00:00]} ({Better is} 47... Nd5 $19 48. Nh2 Nf4) 48. Nf3 $11 {[%emt 0:00:00]} Kg8 {[%emt 0:00:00]} 1/2-1/2

[Event "Fagernes GM Swiss 2020"]
[Site "Fagernes"]
[Date "2020.10.11"]
[Round "9.19"]
[White "Brodtkorb, Lars Johan"]
[Black "Fossan, Aleksander"]
[Result "1/2-1/2"]
[ECO "E60"]
[WhiteElo "2166"]
[BlackElo "2171"]
[Annotator "RC"]
[PlyCount "65"]
[EventDate "2020.10.04"]
[EventType "swiss"]
[EventCountry "NOR"]
[SourceTitle "playchess.com"]
[Source "ChessBase"]
[SourceQuality "1"]
[TimeControl "40/6000+30:2400+30"]

1. d4 {[%emt 0:39:34]} Nf6 {[%emt 0:00:15]} 2. c4 {[%emt 0:00:07]} g6 {[%emt 0:00:07]} 3. Nf3 {[%emt 0:00:12]} Bg7 {[%emt 0:00:59]} 4. e3 {[%emt 0:00:23]} O-O {[%emt 0:01:53]} 5. Be2 {[%emt 0:00:11]} d5 {[%emt 0:02:24]} 6. cxd5 {[%emt 0:00:28]} Nxd5 {[%emt 0:00:16]} 7. O-O {[%emt 0:00:28]} Nb6 {[%emt 0:04:28]} 8. e4 {[%emt 0:09:34]} Bg4 {[%emt 0:19:36]} 9. Nbd2 {[%emt 0:00:26]} e5 {[%emt 0:05:55]} 10. Nxe5 {[%emt 0:03:24]} Bxe2 {[%emt 0:01:23]} 11. Qxe2 {[%emt 0:00:03]} Qxd4 {[%emt 0:01:30]} 12. Ndf3 {[%emt 0:01:34]} Qb4 {[%emt 0:02:48]} 13. Nd3 {[%emt 0:10:12]} Qb5 {[%emt 0:02:34]} 14. Bf4 {[%emt 0:02:37]} Na6 {[%emt 0:21:49]} 15. Rad1 {[%emt 0:15:15]} Rfe8 {[%emt 0:03:12]} 16. Rfe1 {[%emt 0:00:40]} Rad8 {[%emt 0:01:38]} 17. Kf1 {[%emt 0:05:57]} c6 {[%emt 0:02:44]} 18. e5 {[%emt 0:11:04]} Rd5 {[%emt 0:05:13]} 19. b3 {[%emt 0:00:08]} Nc7 {[%emt 0:05:39]} 20. Bg3 {[%emt 0:01:12]} Ne6 {[%emt 0:01:35]} 21. Nb2 {[%emt 0:02:04]} Rxd1 {[%emt 0:02:24]} 22. Rxd1 {[%emt 0:00:14]} Qxe2+ {[%emt 0:00:22]} 23. Kxe2 {[%emt 0:00:02]} Nd5 {[%emt 0:00:13]} 24. Kf1 {[%emt 0:00:39]} Nc5 {[%emt 0:06:27]} 25. Nc4 {[%emt 0:02:27]} Ne4 {[%emt 0:00:34]} 26. Nd6 {[%emt 0:00:26]} Nxg3+ {[%emt 0:00:23]} 27. hxg3 {[%emt 0:00:02]} Re7 {[%emt 0:00:26]} 28. a4 {[%emt 0:00:44]} b6 {[%emt 0:03:02]} 29. Nc8 {[%emt 0:01:08]} Rd7 {[%emt 0:02:11]} 30. Ke1 {[%emt 0:00:05]} Bf8 {[%emt 0:00:30]} 31. Rd3 {[%emt 0:01:28]} Bb4+ {[%emt 0:06:22]} 32. Kf1 {[%emt 0:00:12]} h5 {[%emt 0:07:08]} 33. Nd4 {[%emt 0:00:58]} 1/2-1/2

[Event "Fagernes GM Swiss 2020"]
[Site "Fagernes"]
[Date "2020.10.11"]
[Round "9.23"]
[White "Melaa, Sondre"]
[Black "Kvendseth, Thyra"]
[Result "1-0"]
[ECO "B06"]
[WhiteElo "2210"]
[BlackElo "2017"]
[Annotator "NA"]
[PlyCount "135"]
[EventDate "2020.10.04"]
[EventType "swiss"]
[EventCountry "NOR"]
[SourceTitle "playchess.com"]
[Source "ChessBase"]
[SourceQuality "1"]
[TimeControl "40/6000+30:2400+30"]

{[%evp 8,113,37,38,26,17,31,15,19,18,53,57,64,58,57,7,33,19,61,50,56,43,93,83,86,79,80,83,85,67,69,64,70,59,64,67,81,64,112,62,412,122,106,32767,32767,72,86,58,32767,50,58,54,73,67,84,24,23,32767,32767,0,0,32767,20,13,29,0,27,32767,32767,32767,21,0,124,87,184,187,186,182,174,32767,32767,160,32767,32767,32767,72,86,71,72,89,91,97,32767,32767,32767,32767,32767,400,348,360,413,399,429,430,450,252,237,244]} 1. e4 {[%emt 0:00:00]} g6 {[%emt 0:00:00]} 2. d4 {[%emt 0:00:00]} Bg7 {[%emt 0:00:00]} 3. Nf3 {[%emt 0:00:00]} d6 {[%emt 0:00:26]} 4. Bc4 {[%emt 0:00:10]} Nf6 {[%emt 0:00:58]} 5. Qe2 {[%emt 0:00:14]} O-O {[%emt 0:03:20]} 6. e5 {[%emt 0:00:09]} dxe5 {[%emt 0:00:36]} 7. dxe5 {[%emt 0:00:15]} Nd5 {[%emt 0:00:23]} 8. O-O {[%emt 0:04:34]} Nb6 {[%emt 0:05:02] B06: Modern Defence.} 9. Rd1 {[%emt 0:03:46]} Qe8 $1 {[%emt 0:01:03]} 10. Bb3 {[%emt 0:03:43]} Bg4 {[%emt 0:12:10]} 11. Bf4 {[%emt 0:12:42]} Nc6 {[%emt 0:09:27] [#]} 12. c3 $146 {[%emt 0:05:35]} ({Predecessor:} 12. Nbd2 a5 13. a3 Nd4 14. Qe4 Nxb3 15. Nxb3 c6 16. Nc5 Qc8 17. h3 Bf5 18. Qe2 {1-0 (65) Roseneck,J (2417)-Knudsen,S (2194) Braunschweig 2019}) 12... e6 {[%emt 0:06:55]} 13. Nbd2 {[%emt 0:06:08]} Nd5 {[%emt 0:07:57]} 14. Bg3 {[%emt 0:00:36]} Na5 {[%emt 0:14:20]} 15. Bc2 {[%emt 0:04:11]} Nc6 {[%emt 0:06:21]} 16. h3 {[%emt 0:03:24]} Bh5 {[%emt 0:01:10]} 17. Bh2 {[%emt 0:02:01]} Bxf3 {[%emt 0:01:07]} 18. Nxf3 {[%emt 0:00:11]} Qe7 {[%emt 0:00:57]} 19. a3 {[%emt 0:19:29]} a5 {[%emt 0:05:02]} 20. Qb5 {[%emt 0:01:24]} Nb6 {[%emt 0:01:13]} 21. a4 {[%emt 0:08:05]} Na7 {[%emt 0:08:51]} 22. Qe2 {[%emt 0:09:41]} Qc5 {[%emt 0:02:18]} 23. Be4 {[%emt 0:02:19]} Nc4 $2 {[%emt 0:06:39]} (23... Rfb8 $14) 24. Bd3 $2 {[%emt 0:02:45]} (24. b4 $18 {and the rest is easy.} axb4 25. cxb4 Qxb4 26. Rdb1) 24... Nb6 {[%emt 0:00:32]} 25. Bf4 {[%emt 0:02:52]} Nd5 {[%emt 0:00:53]} 26. Bg5 {[%emt 0:02:01]} Nc6 {[%emt 0:01:28]} 27. Be4 {[%emt 0:01:59]} h6 {[%emt 0:02:32]} 28. Bh4 {[%emt 0:01:10]} Rfe8 {[%emt 0:01:49]} 29. Bg3 {[%emt 0:04:01]} Rad8 {[%emt 0:00:44]} 30. Qb5 {[%emt 0:00:44]} b6 {[%emt 0:02:30]} 31. Qxc5 {[%emt 0:02:29]} (31. Rd2 $16) 31... bxc5 {[%emt 0:00:02]} 32. Bd3 {[%emt 0:00:09]} Nce7 {[%emt 0:01:35]} 33. Be2 {[%emt 0:03:47]} Rb8 {[%emt 0:04:21]} 34. Rd2 {[%emt 0:03:07]} Nf5 {[%emt 0:01:49]} 35. Bh2 {[%emt 0:00:25]} Nfe7 {[%emt 0:00:34]} 36. Rc2 {[%emt 0:01:16]} Red8 {[%emt 0:01:13]} 37. Nd2 {[%emt 0:01:03]} Nc6 {[%emt 0:00:22]} 38. Nc4 {[%emt 0:00:22]} g5 {[%emt 0:00:53]} 39. Bf3 {[%emt 0:01:30]} Rb7 {[%emt 0:01:02]} (39... Nb6 $11 {keeps the balance.}) 40. Rd1 {[%emt 0:00:46]} Rbb8 {[%emt 0:00:41]} (40... Nce7 $16 41. Rcd2 (41. Nxa5 Ra7 $14) 41... Ra8) 41. Rcd2 {[%emt 0:01:12]} Nce7 {[%emt 0:06:05]} 42. Nxa5 {[%emt 0:02:05]} Rf8 {[%emt 0:02:16]} 43. Nc4 {[%emt 0:04:13]} Nb6 {[%emt 0:01:37]} 44. Nxb6 {[%emt 0:01:28]} cxb6 {[%emt 0:00:01]} 45. Rd7 {[%emt 0:04:56]} Ng6 {[%emt 0:01:19]} 46. Re1 {[%emt 0:02:45]} Rfd8 {[%emt 0:00:47]} 47. Rd6 {[%emt 0:04:49]} Bf8 {[%emt 0:01:34]} 48. Rxd8 {[%emt 0:04:41]} Rxd8 {[%emt 0:00:05]} 49. Rd1 {[%emt 0:00:14]} Rxd1+ {[%emt 0:01:57]} 50. Bxd1 {[%emt 0:00:02]} Bg7 {[%emt 0:00:45]} 51. b4 {[%emt 0:01:18]} Nxe5 {[%emt 0:00:39]} 52. bxc5 {[%emt 0:00:44]} bxc5 {[%emt 0:00:08]} 53. a5 {[%emt 0:00:21]} Nc6 {[%emt 0:01:48]} 54. a6 {[%emt 0:00:08]} e5 {[%emt 0:00:19]} 55. Kf1 {[%emt 0:03:08]} Kf8 {[%emt 0:01:27] [#]} 56. Ke2 $18 {[%emt 0:01:05]} (56. f4 $142 $1 {[%mdl 512]} Ke7 (56... exf4 57. Ba4) 57. fxe5) 56... Ke7 {[%emt 0:00:26]} 57. Kd3 {[%emt 0:00:51]} Kd6 {[%emt 0:02:26]} 58. Kc4 {[%emt 0:00:11]} Na7 {[%emt 0:00:22]} 59. Bf3 {[%emt 0:03:02]} f5 {[%emt 0:02:52]} 60. Bb7 {[%emt 0:01:44]} Bf6 {[%emt 0:01:15]} 61. f3 {[%emt 0:01:43]} Bd8 {[%emt 0:00:51]} 62. Bg1 {[%emt 0:00:27]} Bb6 {[%emt 0:00:10]} 63. g4 {[%emt 0:00:29]} f4 {[%emt 0:03:48]} 64. Bf2 {[%emt 0:00:23]} Kc7 {[%emt 0:03:46]} 65. Bxc5 {[%emt 0:01:06]} Nc8 {[%emt 0:01:30]} 66. Bxc8 {[%emt 0:01:17]} Bxc5 {[%emt 0:00:05]} 67. Kxc5 {[%emt 0:00:13]} e4 {[%emt 0:00:51]} 68. a7 {[%emt 0:00:11]} 1-0

[Event "Fagernes GM Swiss 2020"]
[Site "Fagernes"]
[Date "2020.10.11"]
[Round "9.24"]
[White "Flatebo, Hallvard Haug"]
[Black "Royset, Pal"]
[Result "0-1"]
[ECO "B48"]
[WhiteElo "1877"]
[BlackElo "2150"]
[Annotator "NA"]
[PlyCount "132"]
[EventDate "2020.10.04"]
[EventType "swiss"]
[EventCountry "NOR"]
[SourceTitle "playchess.com"]
[Source "ChessBase"]
[SourceQuality "1"]
[TimeControl "40/6000+30:2400+30"]

{[%evp 8,132,41,32767,32767,32767,32767,32767,17,2,28,-62,0,-39,-37,-85,-72,-85,-77,-61,-72,-80,-57,-81,-79,-89,-90,-90,-77,-98,-105,32767,32767,-156,-122,-161,-142,-345,38,-193,-194,-191,-181,-195,-185,-210,-231,-246,-200,-189,-178,-250,-159,-150,-146,-169,-168,-154,-139,-194,-192,-335,-198,-281,-299,-316,-329,32767,-439,-623,32767,32767,-467,32767,-512,32767,-402,-400,-431,-470,32767,32767,32767,-98,-95,-82,32767,-167,32767,-555,-170,32767,32767,32767,32767,32767,32767,32767,32767,32767,32767,32767,-302,-301,-309,-320,-309,-327,-338,-335,-308,-335,-301,-322,-309,-306,-302,-302,-302,-302,-295,-302,-302,-302,-302,-12850,-29979]} 1. e4 {[%emt 0:00:00]} c5 {[%emt 0:03:27]} 2. Nf3 {[%emt 0:00:00]} e6 {[%emt 0:00:38]} 3. d4 {[%emt 0:00:00]} cxd4 {[%emt 0:00:05]} 4. Nxd4 {[%emt 0:00:02]} Nc6 {[%emt 0:00:59]} 5. Nc3 {[%emt 0:01:02]} a6 {[%emt 0:00:21]} 6. Be3 {[%emt 0:00:34]} Nf6 {[%emt 0:01:56]} 7. Bd3 {[%emt 0:02:01]} Qc7 {[%emt 0:04:43]} 8. Qe2 {[%emt 0:01:18]} Bb4 {[%emt 0:03:29]} 9. f4 {[%emt 0:04:38] B48: Sicilian: Taimanov: 5 Nc3 Qc7 6 Be3 a6 without Be2.} (9. O-O $14) 9... Nxd4 {[%emt 0:04:10]} 10. Bxd4 {[%emt 0:00:11]} Qxf4 {[%emt 0:00:34] [#]} 11. g3 $146 {[%emt 0:02:48]} ({Predecessor:} 11. a3 $11 Ba5 (11... Be7 12. Be3 Qc7 13. O-O Bd6 14. h3 Bc5 15. Rae1 Bxa3 16. Na4 Be7 17. Nb6 {1-0 (46) Guedes,L (1813)-Passos,R (1800) Brasilia 2019}) 12. Qf3 Qxf3 13. gxf3) 11... Qd6 {[%emt 0:04:15]} 12. Be3 {[%emt 0:04:01]} h5 {[%emt 0:05:01]} 13. Bd2 {[%emt 0:04:50]} Ng4 {[%emt 0:02:15]} 14. O-O-O {[%emt 0:03:30]} Ne5 {[%emt 0:02:28]} 15. Bc4 {[%emt 0:02:27]} Qc7 {[%emt 0:04:12]} 16. Bb3 {[%emt 0:00:55]} b5 {[%emt 0:06:38]} 17. Kb1 {[%emt 0:02:58]} Be7 {[%emt 0:03:04]} 18. Bf4 {[%emt 0:03:59]} d6 {[%emt 0:04:27]} 19. Rhf1 {[%emt 0:04:22]} Bb7 {[%emt 0:02:49]} 20. h4 {[%emt 0:04:26]} (20. a3 $142) 20... Bf6 {[%emt 0:14:55]} 21. Rd2 {[%emt 0:03:22]} (21. Rd4 $17) 21... Bc6 {[%emt 0:02:35]} 22. Rfd1 $2 {[%emt 0:04:14]} (22. a3 $17) 22... Be7 $2 {[%emt 0:01:58] [#]} (22... b4 $19 23. Nd5 exd5 24. Bxd5 Bb5) 23. Rf1 $2 {[%emt 0:02:22] [#]} (23. Nd5 $1 $11 {[%mdl 512]} exd5 24. Bxe5 dxe5 25. exd5) 23... b4 $1 {[%emt 0:01:29]} 24. Bxe5 {[%emt 0:01:42]} dxe5 {[%emt 0:02:37]} 25. Qf3 {[%emt 0:00:51]} Bf6 {[%emt 0:03:41]} 26. Ne2 {[%emt 0:07:27]} Qb7 {[%emt 0:00:49]} 27. Qe3 {[%emt 0:04:28]} Qa7 {[%emt 0:06:38]} ({Wrong is} 27... Bxe4 $2 28. Ba4+ Bc6 29. Qf3 $18) 28. Qf3 {[%emt 0:03:13]} Bb5 {[%emt 0:01:18]} 29. Rd6 {[%emt 0:03:18]} (29. c3 $142) 29... Ke7 {[%emt 0:02:03]} ({Black should try} 29... a5 $19 30. Bxe6 Qc7) 30. Rfd1 {[%emt 0:02:49]} Rhd8 {[%emt 0:01:09]} 31. Rxd8 {[%emt 0:01:55]} Rxd8 {[%emt 0:00:07]} 32. Rxd8 {[%emt 0:02:07]} Kxd8 {[%emt 0:00:21]} 33. c4 {[%emt 0:00:34]} Bc6 {[%emt 0:00:11]} 34. a3 $2 {[%emt 0:03:16]} (34. Bc2 {keeps fighting.}) 34... a5 {[%emt 0:00:39]} 35. a4 {[%emt 0:02:23]} Ke8 {[%emt 0:03:19]} 36. Ka2 {[%emt 0:02:28]} Be7 {[%emt 0:00:50]} 37. c5 {[%emt 0:05:54]} Qxc5 {[%emt 0:01:13]} 38. Qxh5 {[%emt 0:00:36]} (38. Kb1 $142) 38... g6 {[%emt 0:03:12]} 39. Qf3 {[%emt 0:00:58]} f5 {[%emt 0:01:00]} 40. Bxe6 {[%emt 0:00:36]} Bxe4 {[%emt 0:00:22]} 41. Qb3 {[%emt 0:40:42]} Kd8 {[%emt 0:49:46]} 42. Qd1+ {[%emt 0:05:41]} Qd6 {[%emt 0:00:44]} 43. Qb3 {[%emt 0:02:33]} f4 {[%emt 0:03:15]} 44. gxf4 {[%emt 0:01:02]} exf4 {[%emt 0:00:27]} 45. Qc4 {[%emt 0:00:20] [#]} b3+ $1 {[%emt 0:00:00]} 46. Qxb3 {[%emt 0:00:00]} Bxh4 {[%emt 0:00:00]} 47. Qc4 {[%emt 0:00:00]} (47. Nc3 $15 Bg2 48. Bc4) 47... Bd3 {[%emt 0:00:00]} 48. Qc8+ {[%emt 0:00:00]} Ke7 {[%emt 0:00:00]} 49. Nxf4 {[%emt 0:00:00]} Qxf4 {[%emt 0:00:00]} 50. Qd7+ {[%emt 0:00:00]} Kf6 {[%emt 0:00:00]} 51. Qxd3 {[%emt 0:00:00]} Qxa4+ {[%emt 0:00:00]} 52. Kb1 {[%emt 0:00:00]} Kxe6 {[%emt 0:00:00]} 53. Qxg6+ {[%emt 0:17:37]} Bf6 {[%emt 0:00:00]} 54. Qg8+ {[%emt 0:00:00]} Ke7 {[%emt 0:00:00]} 55. Qh7+ {[%emt 0:00:00]} Kd6 {[%emt 0:00:00]} 56. Qh2+ {[%emt 0:00:00]} Kc6 {[%emt 0:00:00]} 57. Qg2+ {[%emt 0:00:00]} Kb6 {[%emt 0:00:00]} 58. Qe2 {[%emt 0:00:00]} Qd4 {[%emt 0:00:00]} 59. Qe6+ {[%emt 0:00:00]} Kc7 {[%emt 0:00:00]} 60. Qf7+ {[%emt 0:00:00]} Kd6 {[%emt 0:00:00]} 61. Qf8+ {[%emt 0:00:00]} Ke6 {[%emt 0:00:00]} 62. Qc8+ {[%emt 0:00:00]} Ke5 {[%emt 0:00:00]} 63. Qc7+ {[%emt 0:00:00]} Ke4 {[%emt 0:00:00]} 64. Qc6+ {[%emt 0:00:00]} Kf4 {[%emt 0:00:00]} 65. Qc7+ {[%emt 0:00:00]} Kf3 {[%emt 0:00:00]} 66. Qb7+ $19 {[%emt 0:00:00]} (66. Qh2) 66... Qe4+ {[%emt 0:00:00]} 0-1